bitfinex/quotes_SOLUSD_20240811
["timestamp","ask_amount","ask_price","bid_price","bid_amount"]
[1723411483518,45.0,144.43,144.39,6.9255]
[1723411483943,45.0,144.43,144.38,17.3152]
[1723411484436,28.23,144.42,144.38,17.3152]
[1723411484639,28.23,144.42,144.38,24.2413]
[1723411485915,28.23,144.42,144.38,17.3152]
[1723411486117,28.23,144.42,144.36,6.9267]
[1723411486118,28.23,144.4,144.36,6.9267]
[1723411486730,28.23,144.4,144.37,6.9265]
[1723411486943,16.1164137,144.46,144.37,17.3158]
[1723411487139,28.23,144.43,144.4,6.9247]
[1723411487839,28.23,144.41,144.38,20.0]
[1723411488423,2.71131557,144.49,144.38,54.629]
[1723411488631,12.70119376,144.64,144.38,54.629]
[1723411488632,29.0531137,144.61,144.49,0.12549]
[1723411488835,28.23,144.53,144.48,26.9209]
[1723411489141,28.23,144.51,144.48,24.2236]
[1723411490039,28.23,144.49,144.46,6.9219]
[1723411490226,28.23,144.49,144.47,6.9217]
[1723411490641,28.23,144.49,144.46,6.9222]
[1723411490844,28.23,144.49,144.47,6.9217]
[1723411491526,28.23,144.49,144.44,17.3072]
[1723411491723,28.23,144.45,144.44,24.2303]
[1723411493941,28.23,144.45,144.44,17.3072]
[1723411494445,28.23,144.45,144.4,17.3119]
[1723411494766,28.23,144.41,144.4,24.2371]
[1723411494927,6.9229,144.45,144.4,17.3119]
[1723411495127,28.23,144.41,144.4,17.3119]
[1723411495333,28.23,144.41,144.4,24.237]
[1723411496121,28.23,144.41,144.3,15.46087816]
[1723411496122,28.23,144.41,144.38,6.9261]
[1723411496321,28.23,144.39,144.38,6.9261]
[1723411499851,22.61,144.39,144.38,6.9261]
[1723411500031,23.1833,144.43,144.38,6.9261]
[1723411500231,22.61,144.39,144.38,6.9261]
[1723411500957,22.61,144.39,144.37,24.2429]
[1723411501348,22.61,144.39,144.37,17.3164]
[1723411502076,22.61,144.39,144.35,6.9275]
[1723411502255,6.9248,144.41,144.35,6.9275]
[1723411502464,22.61,144.36,144.35,6.9275]
[1723411504244,22.61,144.36,144.34,17.3201]
[1723411504660,22.61,144.36,144.34,24.2481]
[1723411505934,22.61,144.35,144.34,24.2481]
[1723411507963,22.61,144.38,144.34,17.3201]
[1723411508170,22.61,144.38,144.36,17.3168]
[1723411508845,22.61,144.38,144.34,6.928]
[1723411509247,22.61,144.36,144.33,24.2493]
[1723411509765,22.61,144.36,144.34,6.928]
[1723411510464,6.9257,144.39,144.34,6.928]
[1723411510674,22.61,144.37,144.34,6.928]
[1723411511358,45.0,144.38,144.34,6.928]
[1723411511664,22.61,144.37,144.34,6.928]
[1723411515766,22.61,144.37,144.33,24.2493]
[1723411516852,29.5367,144.37,144.33,17.3209]
[1723411517472,29.5367,144.37,144.33,24.2494]
[1723411517473,22.61,144.37,144.33,24.2494]
[1723411518956,45.0,144.38,144.34,6.928]
[1723411519160,22.61,144.37,144.34,6.928]
[1723411519478,45.8384,144.35,144.3,24.2544]
[1723411519654,22.61,144.32,144.3,24.2544]
[1723411521252,29.806,144.35,144.3,24.2544]
[1723411521575,22.61,144.31,144.3,17.3246]
[1723411523587,22.61,144.31,144.28,6.9308]
[1723411524891,6.9286,144.33,144.28,6.9308]
[1723411525078,22.8781,144.35,144.27,17.3279]
[1723411525079,22.61,144.3,144.29,6.9304]
[1723411526798,6.9286,144.33,144.29,6.9304]
[1723411526973,22.61,144.31,144.29,6.9304]
[1723411527894,22.61,144.31,144.27,17.3279]
[1723411528077,22.61,144.31,144.29,6.9304]
[1723411529796,22.61,144.31,144.28,6.9308]
[1723411531989,11.32,144.29,144.28,6.9308]
[1723411538184,15.9273,144.28,144.26,6.9318]
[1723411538387,11.32,144.27,144.25,6.9323]
[1723411538710,11.32,144.26,144.25,6.9323]
[1723411539321,11.32,144.26,144.24,6.9324]
[1723411539616,11.32,144.25,144.24,6.9324]
[1723411544305,11.32,144.25,144.24,6.9327]
[1723411545113,15.8526,144.34,144.25,34.6613]
[1723411545307,15.8526,144.34,144.33,6.9285]
[1723411545493,15.8526,144.34,144.33,24.2499]
[1723411550691,15.8526,144.34,144.3,17.3247]
[1723411551010,15.8526,144.34,144.31,6.9295]
[1723411551517,38.4626,144.34,144.31,6.9295]
[1723411551695,38.4626,144.34,144.3,24.2546]
[1723411551901,22.61,144.32,144.3,24.2546]
[1723411552099,22.61,144.32,144.27,17.3281]
[1723411552316,29.5391,144.32,144.27,24.2591]
[1723411552516,29.5391,144.32,144.28,6.9309]
[1723411552823,22.61,144.32,144.28,6.9309]
[1723411553117,29.539,144.32,144.28,6.9309]
[1723411553494,22.61,144.3,144.27,24.2594]
[1723411553923,22.61,144.3,144.27,17.3281]
[1723411554221,22.61,144.28,144.27,17.3281]
[1723411555300,22.61,144.28,144.26,6.9318]
[1723411557024,22.61,144.28,144.24,17.3317]
[1723411557025,16.1203,144.27,144.25,6.9323]
[1723411557449,16.1203,144.27,144.24,17.3317]
[1723411557633,16.1203,144.27,144.26,6.9319]
[1723411565197,16.1203,144.27,144.25,6.9323]
[1723411566133,16.1203,144.27,144.24,24.2644]
[1723411566815,22.61,144.26,144.24,24.2644]
[1723411567730,22.61,144.26,144.2,15.47159999]
[1723411567902,16.1203,144.27,144.22,6.9334]
[1723411567903,22.61,144.24,144.22,6.9334]
[1723411568613,22.61,144.24,144.21,17.3355]
[1723411569219,22.61,144.22,144.18,17.3389]
[1723411569623,22.61,144.22,144.18,24.2743]
[1723411570141,16.3248,144.21,144.18,24.2743]
[1723411570429,28.9187,144.2,144.18,17.3389]
[1723411570803,6.3087,144.2,144.16,6.9367]
[1723411571035,28.9187,144.2,144.17,6.9362]
[1723411571206,22.61,144.18,144.15,14.18537049]
[1723411571407,22.61,144.18,144.15,6.9368]
[1723411571829,22.61,144.18,144.14,24.2806]
[1723411573106,22.61,144.16,144.14,24.2806]
[1723411574313,15.413,144.15,144.14,24.2806]
[1723411575918,15.413,144.15,144.13,6.9381]
[1723411576833,15.413,144.15,144.14,6.9376]
[1723411581317,15.413,144.15,144.13,17.3447]
[1723411581318,15.413,144.15,144.13,24.2828]
[1723411581617,38.023,144.15,144.11,6.9391]
[1723411581838,44.9602,144.15,144.11,6.9391]
[1723411583024,38.023,144.15,144.11,6.9391]
[1723411584514,22.61,144.13,144.1,7.7626137]
[1723411586034,6.1817,144.14,144.1,7.7626137]
[1723411586336,22.61,144.13,144.1,7.7626137]
[1723411586734,22.61,144.11,144.1,0.8231137]
[1723411588229,37.8378,144.11,144.1,0.8231137]
[1723411589957,33.5169,144.11,144.1,0.8231137]
[1723411591253,78.5169,144.11,144.1,0.8231137]
[1723411591833,11.35,144.07,144.03,17.3568]
[1723411592036,60.35329,144.11,144.04,6.9421]
[1723411592037,11.35,144.06,144.04,6.9421]
[1723411592932,11.35,144.05,144.03,24.2997]
[1723411593948,22.71,144.06,144.03,24.2997]
[1723411594156,22.71,144.08,144.03,17.3568]
[1723411594444,22.71,144.08,144.03,18.74510046]
[1723411594636,22.71,144.08,144.05,6.9416]
[1723411594844,0.12549,144.12,144.02,11.2796712]
[1723411594845,22.71,144.06,144.02,11.2796712]
[1723411595050,22.71,144.04,144.02,11.2796712]
[1723411596729,22.58796979,144.04,144.02,11.2796712]
[1723411600849,6.9438,144.02,143.97,24.3103]
[1723411601050,22.71,143.99,143.97,24.3103]
[1723411601360,22.71,143.99,143.97,17.3645]
[1723411601560,28.787,143.99,143.95,7.7698137]
[1723411603151,22.71,143.97,143.95,7.7698137]
[1723411604257,22.71,143.97,143.95,0.8231137]
[1723411604258,15.063,143.96,143.95,0.8231137]
[1723411604640,82.773,143.96,143.95,0.8231137]
[1723411605056,89.7193,143.96,143.95,0.8231137]
[1723411609662,89.7193,143.96,143.91,7.06931096]
[1723411609663,0.12549,143.94,143.91,0.12081096]
[1723411609878,22.71,143.92,143.91,0.12081096]
[1723411610051,29.6583,143.92,143.91,0.12081096]
[1723411610247,74.6583,143.92,143.91,0.12081096]
[1723411611276,6.9489,143.91,143.86,24.3282]
[1723411611479,22.71,143.88,143.86,24.3282]
[1723411611648,15.0654,143.87,143.83,17.3814]
[1723411611846,22.71,143.86,143.84,6.9517]
[1723411612676,22.71,143.86,143.83,24.3339]
[1723411613052,22.71,143.86,143.84,6.9521]
[1723411613355,15.0654,143.87,143.85,6.9515]
[1723411613675,15.0654,143.87,143.84,6.952]
[1723411613854,22.71,143.86,143.84,6.952]
[1723411614748,22.71,143.86,143.83,24.3339]
[1723411615366,15.0654,143.87,143.84,6.9521]
[1723411615568,22.71,143.86,143.85,6.9516]
[1723411615769,22.71,143.86,143.84,6.952]
[1723411616079,22.83549,143.85,143.8,24.3388]
[1723411616373,22.71,143.82,143.8,17.3848]
[1723411616744,22.71,143.82,143.79,6.9544]
[1723411616972,67.71,143.82,143.78,6.9549]
[1723411617470,67.71,143.82,143.77,17.3884]
[1723411617471,22.71,143.82,143.79,6.9545]
[1723411618079,22.71,143.82,143.8,6.954]
[1723411618449,15.0654,143.87,143.83,6.9522]
[1723411618677,22.71,143.86,143.83,6.9522]
[1723411619045,22.71,143.86,143.82,6.9531]
[1723411621275,22.71,143.84,143.82,6.9529]
[1723411621450,22.71,143.84,143.83,6.9526]
[1723411621657,15.0654,143.87,143.83,17.3806]
[1723411621854,15.0654,143.87,143.84,6.9521]
[1723411623064,22.71,143.86,143.84,6.9521]
[1723411623465,15.0654,143.87,143.84,6.9521]
[1723411623650,15.0654,143.87,143.85,6.9516]
[1723411624854,15.0654,143.87,143.84,6.952]
[1723411625286,22.0161,143.87,143.83,24.3331]
[1723411625462,22.71,143.86,143.84,6.9521]
[1723411625661,15.0654,143.87,143.86,6.9512]
[1723411626282,15.0654,143.87,143.85,24.3297]
[1723411626981,15.0654,143.87,143.86,6.9512]
[1723411627182,16.5608,143.91,143.87,17.3761]
[1723411627484,16.5608,143.91,143.88,6.9497]
[1723411627956,16.5608,143.99,143.89,17.3733]
[1723411628159,16.5608,143.99,143.9,20.37647]
[1723411628361,22.71,143.97,143.93,17.3684]
[1723411628771,22.71,143.95,143.83,0.12549]
[1723411628968,22.71,143.93,143.87,17.3764]
[1723411629684,22.71,143.93,143.89,6.9496]
[1723411630181,22.71,143.93,143.87,17.3764]
[1723411630182,22.71,143.91,143.88,6.9498]
[1723411630757,22.71,143.91,143.89,6.9495]
[1723411631575,16.5608,143.92,143.89,6.9495]
[1723411633481,16.5608,143.92,143.88,6.95]
[1723411634685,16.5608,143.92,143.89,6.9496]
[1723411635764,16.5608,143.92,143.9,6.9492]
[1723411635973,16.5608,143.92,143.9,17.373]
[1723411636171,16.5608,143.92,143.9,24.3221]
[1723411637376,22.71,143.93,143.91,6.9487]
[1723411637579,22.71,143.93,143.9,24.3221]
[1723411639185,22.71,143.95,143.93,6.9476]
[1723411639389,22.71,143.95,143.9,17.373]
[1723411639992,22.71,143.93,143.89,6.9496]
[1723411640195,22.71,143.93,143.87,17.3765]
[1723411640392,29.6579,143.93,143.88,6.9498]
[1723411641100,29.63500227,143.93,143.91,0.02374828]
[1723411641605,22.68710227,143.93,143.91,0.02374828]
[1723411642079,15.5854,143.96,143.91,0.02374828]
[1723411642480,15.5854,143.96,143.93,17.3685]
[1723411642788,15.5854,143.96,143.92,6.9478]
[1723411642789,38.2954,143.96,143.92,6.9478]
[1723411643099,45.2417,143.96,143.91,6.97244828]
[1723411643405,22.71,143.94,143.91,6.97244828]
[1723411644277,22.71,143.94,143.91,0.02374828]
[1723411645494,22.71,143.92,143.91,0.02374828]
[1723411649928,36.1462,143.92,143.91,0.02374828]
[1723411650708,52.1993,143.92,143.91,0.02374828]
[1723411650901,52.1993,143.92,143.87,17.3764]
[1723411650902,22.71,143.88,143.87,17.3764]
[1723411651099,22.71,143.88,143.87,24.3271]
[1723411651490,22.71,143.88,143.87,17.3764]
[1723411652635,22.71,143.88,143.84,17.3798]
[1723411652930,6.9498,143.89,143.84,24.3315]
[1723411652931,22.71,143.86,143.84,24.3315]
[1723411655732,22.3679,143.85,143.81,18.2065137]
[1723411656024,22.71,143.84,143.81,18.2065137]
[1723411656820,22.71,143.84,143.83,6.9526]
[1723411658421,22.3679,143.89,143.86,6.951]
[1723411658719,22.71,143.88,143.86,6.951]
[1723411658932,22.71,143.88,143.83,17.3809]
[1723411659412,22.3679,143.89,143.85,6.9512]
[1723411659732,22.71,143.88,143.85,6.9512]
[1723411660822,22.71,143.88,143.83,17.3809]
[1723411660823,22.71,143.88,143.84,6.9521]
[1723411661910,22.71,143.87,143.84,6.9521]
[1723411662312,22.71,143.87,143.85,6.9516]
[1723411662907,22.71,143.87,143.84,6.952]
[1723411663817,22.71,143.85,143.81,0.8231137]
[1723411664142,22.71,143.85,143.82,6.9529]
[1723411665234,22.71,143.85,143.81,7.7766137]
[1723411665527,22.71,143.85,143.82,6.953]
[1723411665933,22.71,143.85,143.81,7.7766137]
[1723411666326,29.6618,143.85,143.81,7.7766137]
[1723411667830,29.6618,143.85,143.81,0.8231137]
[1723411668034,22.71,143.83,143.81,0.8231137]
[1723411668208,22.3679,143.89,143.82,17.3818]
[1723411668411,29.6607,143.87,143.83,6.9522]
[1723411669122,29.6607,143.87,143.82,24.3347]
[1723411669515,22.3679,143.89,143.84,6.9521]
[1723411669724,22.71,143.87,143.83,6.9525]
[1723411670432,29.6608,143.87,143.83,6.9525]
[1723411671228,22.71,143.87,143.83,6.9525]
[1723411672235,22.71,143.85,143.82,24.3348]
[1723411672439,22.71,143.85,143.82,17.3818]
[1723411673037,22.71,143.85,143.82,24.3346]
[1723411674259,22.71,143.85,143.83,6.9524]
[1723411675158,22.71,143.85,143.82,24.3348]
[1723411675360,22.71,143.85,143.82,17.3818]
[1723411675855,22.71,143.85,143.81,7.7765137]
[1723411675856,11.39,143.83,143.81,0.8231137]
[1723411676061,11.39,143.82,143.81,0.8231137]
[1723411676655,6.9522,143.84,143.81,0.8231137]
[1723411676862,11.39,143.84,143.81,7.7765137]
[1723411678057,6.9508,143.87,143.82,6.9529]
[1723411678246,11.39,143.84,143.82,6.9529]
[1723411678757,11.39,143.84,143.81,7.7766137]
[1723411678964,6.9512,143.86,143.81,7.7766137]
[1723411679269,11.39,143.84,143.81,7.7766137]
[1723411679474,11.39,143.83,143.81,0.8231137]
[1723411679633,11.39,143.82,143.81,0.8231137]
[1723411679836,6.9512,143.86,143.81,7.7767137]
[1723411680031,11.39,143.83,143.81,7.7767137]
[1723411680855,39.7429,143.89,143.82,6.9531]
[1723411681036,11.39,143.85,143.81,7.7765137]
[1723411681247,11.39,143.84,143.82,6.9531]
[1723411681446,11.39,143.85,143.82,6.9531]
[1723411682041,11.39,143.84,143.82,6.9531]
[1723411682669,11.39,143.83,143.81,7.7766137]
[1723411683255,11.39,143.83,143.81,0.8231137]
[1723411683656,11.39,143.83,143.81,7.7766137]
[1723411686479,11.39,143.83,143.81,0.8231137]
[1723411686660,27.3683,143.82,143.81,0.8231137]
[1723411686851,34.3214,143.82,143.81,0.8231137]
[1723411688281,15.9783,143.82,143.81,0.8231137]
[1723411688446,27.3683,143.82,143.81,0.8231137]
[1723411688647,34.3214,143.82,143.81,0.8231137]
[1723411688858,40.5316,143.82,143.81,0.8231137]
[1723411689683,11.39,143.78,143.72,17.3938]
[1723411689865,67.43948,143.82,143.75,6.9563]
[1723411689866,11.39,143.76,143.75,6.9563]
[1723411690182,11.39,143.76,143.75,6.9565]
[1723411690372,11.39,143.77,143.75,6.9565]
[1723411691870,22.8,143.77,143.74,24.3487]
[1723411692196,22.8,143.77,143.66,1.74647263]
[1723411692197,22.8,143.75,143.71,17.3956]
[1723411692507,22.8,143.75,143.72,6.9575]
[1723411692852,22.8,143.75,143.73,6.9574]
[1723411693293,22.8,143.75,143.71,17.3956]
[1723411693294,22.8,143.75,143.72,6.9579]
[1723411693996,22.8,143.75,143.71,17.3956]
[1723411693997,29.7578,143.73,143.68,17.3993]
[1723411694271,29.7578,143.73,143.66,0.91907263]
[1723411694272,6.4158,143.75,143.7,17.3965]
[1723411694478,16.2515,143.76,143.75,6.9565]
[1723411694679,16.2515,143.76,143.68,34.7986]
[1723411694680,39.0515,143.76,143.72,17.3937]
[1723411695051,39.0515,143.76,143.73,6.9574]
[1723411695369,16.2515,143.76,143.74,6.9569]
[1723411695752,16.2515,143.76,143.66,8.19471833]
[1723411695753,29.7566,143.75,143.7,6.9588]
[1723411695952,22.8,143.73,143.71,6.9584]
[1723411696974,22.8,143.73,143.7,17.3964]
[1723411699281,22.8,143.73,143.7,24.3552]
[1723411699689,22.8,143.73,143.71,6.9584]
[1723411701584,22.8,143.73,143.7,24.3552]
[1723411702967,16.2515,143.76,143.72,17.3941]
[1723411703200,16.2515,143.76,143.75,6.9565]
[1723411703380,39.0515,143.76,143.75,6.9565]
[1723411705191,39.0515,143.76,143.74,17.3918]
[1723411705588,39.0515,143.76,143.73,6.957]
[1723411705974,39.0515,143.76,143.71,17.3956]
[1723411705975,39.0515,143.76,143.74,6.957]
[1723411706176,39.0515,143.76,143.73,6.9574]
[1723411707776,39.0515,143.76,143.74,6.9568]
[1723411707971,6.9546,143.79,143.7,0.12549]
[1723411707972,15.9629,143.79,143.72,34.91479]
[1723411708186,15.9629,143.79,143.78,6.955]
[1723411709510,15.9629,143.79,143.77,17.3882]
[1723411710293,15.9629,143.79,143.78,6.955]
[1723411711200,6.6432,143.82,143.8,6.9541]
[1723411711906,6.6432,143.82,143.79,17.3856]
[1723411712210,6.6432,143.82,143.79,24.34]
[1723411712584,22.8,143.81,143.76,17.39]
[1723411712926,22.8,143.79,143.73,17.3936]
[1723411713389,22.8,143.77,143.75,6.9564]
[1723411714888,6.6432,143.82,143.73,0.12549]
[1723411715105,22.8,143.8,143.77,24.3437]
[1723411716395,22.8,143.79,143.77,17.3883]
[1723411717004,22.8,143.79,143.75,6.9563]
[1723411717280,22.8,143.79,143.74,17.392]
[1723411717281,38.0314,143.77,143.74,17.392]
[1723411717702,38.0314,143.77,143.74,24.3489]
[1723411718310,38.0314,143.77,143.75,6.9563]
[1723411720816,38.0314,143.77,143.74,17.392]
[1723411722405,76.84197333,143.92,143.83,6.9526]
[1723411722406,22.8,143.87,143.83,6.9526]
[1723411726216,6.9506,143.88,143.83,6.9526]
[1723411726513,22.8,143.86,143.84,6.952]
[1723411728720,22.8,143.86,143.83,17.381]
[1723411729115,22.8,143.86,143.83,24.3336]
[1723411736092,22.8,143.86,143.84,6.952]
[1723411737420,22.8,143.86,143.83,24.3336]
[1723411739825,22.8,143.86,143.84,6.9519]
[1723411742635,22.9255,143.85,143.8,17.3845]
[1723411742928,22.8,143.84,143.81,6.9535]
[1723411744222,22.8,143.84,143.82,18.062496]
[1723411747631,45.0,143.83,143.82,18.062496]
[1723411748336,51.9526,143.83,143.82,18.062496]
[1723411749150,45.0,143.83,143.82,18.062496]
[1723411750317,51.9526,143.83,143.82,18.062496]
[1723411751449,45.0,143.83,143.82,18.062496]
[1723411751924,56.39,143.83,143.82,18.062496]
[1723411752239,63.3426,143.83,143.82,18.062496]
[1723411753517,45.0,143.83,143.82,18.062496]
[1723411753721,11.39,143.84,143.82,25.015496]
[1723411753917,22.9255,143.85,143.82,25.015496]
[1723411754245,11.39,143.83,143.82,18.062496]
[1723411756961,11.39,143.84,143.82,25.015496]
[1723411758060,11.39,143.84,143.82,18.062496]
[1723411758267,11.39,143.83,143.82,18.062496]
[1723411759358,11.39,143.83,143.82,25.015596]
[1723411759558,22.9255,143.85,143.83,6.9526]
[1723411759757,22.9255,143.85,143.82,25.015496]
[1723411759758,34.3155,143.85,143.82,25.015496]
[1723411760940,34.3155,143.85,143.82,18.062496]
[1723411761969,11.39,143.83,143.82,18.062496]
[1723411762262,11.39,143.84,143.82,18.062496]
[1723411762434,11.39,143.83,143.82,18.062496]
[1723411763857,56.39,143.83,143.82,18.062496]
[1723411765040,63.3426,143.83,143.82,18.062496]
[1723411765447,56.39,143.83,143.82,18.062496]
[1723411765777,63.46809,143.83,143.82,18.062496]
[1723411766067,56.39,143.83,143.82,18.062496]
[1723411766254,56.51549,143.83,143.82,18.062496]
[1723411766656,56.64098,143.83,143.82,18.062496]
[1723411766970,56.76647,143.83,143.82,18.062496]
[1723411767847,63.71907,143.83,143.82,18.062496]
[1723411768258,63.84456,143.83,143.82,18.062496]
[1723411768774,0.12549,143.82,143.77,24.3439]
[1723411768976,11.39,143.78,143.77,17.3885]
[1723411769644,11.39,143.78,143.68,2.03806923]
[1723411769645,38.7393,143.78,143.73,6.9574]
[1723411769844,11.39,143.74,143.73,6.9574]
[1723411770348,11.39,143.74,143.71,17.3955]
[1723411770349,56.39,143.74,143.71,24.3538]
[1723411770548,11.39,143.72,143.71,24.3538]
[1723411770947,11.39,143.72,143.64,0.8274]
[1723411771149,11.39,143.7,143.69,6.9594]
[1723411771349,11.39,143.71,143.7,6.9589]
[1723411771866,22.81,143.73,143.7,6.9589]
[1723411772182,45.0,143.72,143.7,6.9589]
[1723411772364,45.0,143.72,143.69,24.3572]
[1723411772691,45.0,143.72,143.7,6.9588]
[1723411773054,22.81,143.71,143.69,17.3979]
[1723411773283,22.81,143.71,143.69,24.3572]
[1723411773784,22.81,143.71,143.67,6.96]
[1723411773956,22.81,143.71,143.66,25.28157263]
[1723411773957,22.81,143.69,143.66,25.28157263]
[1723411774159,22.81,143.69,143.67,6.9603]
[1723411774555,60.6684,143.72,143.68,6.9598]
[1723411774760,22.81,143.71,143.68,6.9598]
[1723411774960,45.0,143.7,143.67,6.9603]
[1723411775195,22.81,143.69,143.66,18.32117263]
[1723411775554,22.81,143.69,143.66,18.2252137]
[1723411776068,22.81,143.69,143.67,6.9602]
[1723411776378,15.6684,143.74,143.72,6.9575]
[1723411776552,38.4784,143.74,143.71,24.3535]
[1723411777189,38.4784,143.74,143.67,17.3999]
[1723411777190,22.81,143.72,143.67,17.3999]
[1723411778466,45.0,143.71,143.67,17.3999]
[1723411778666,45.0,143.71,143.68,6.9598]
[1723411780109,22.81,143.7,143.66,0.8231137]
[1723411780285,22.81,143.7,143.67,6.9603]
[1723411780461,22.81,143.7,143.68,6.9598]
[1723411780655,45.0,143.71,143.68,6.9598]
[1723411781074,45.0,143.71,143.67,6.9603]
[1723411782190,45.0,143.71,143.67,6.9601]
[1723411782488,22.81,143.7,143.67,6.9601]
[1723411782688,45.0,143.69,143.66,25.1849137]
[1723411783364,45.0,143.69,143.66,0.8231137]
[1723411783583,15.2375,143.68,143.66,0.8231137]
[1723411783789,45.0,143.67,143.66,0.8231137]
[1723411784673,15.2375,143.68,143.66,7.7839137]
[1723411784874,15.2375,143.68,143.67,6.9603]
[1723411785066,15.2375,143.68,143.66,7.7838137]
[1723411785467,15.2375,143.68,143.66,0.8231137]
[1723411786089,15.2375,143.68,143.66,7.7838137]
[1723411787297,15.2375,143.68,143.67,6.9603]
[1723411787500,22.81,143.7,143.67,6.9603]
[1723411787678,15.2375,143.71,143.68,6.9598]
[1723411787874,15.2375,143.71,143.67,6.9603]
[1723411788304,15.2375,143.71,143.68,6.9598]
[1723411788513,15.2375,143.71,143.67,6.9603]
[1723411788677,22.196,143.71,143.66,7.7839137]
[1723411789085,15.2375,143.71,143.68,6.9598]
[1723411789290,15.2375,143.71,143.67,6.9603]
[1723411789805,15.2375,143.71,143.68,6.9598]
[1723411790412,15.2375,143.71,143.67,6.9603]
[1723411790702,15.2375,143.71,143.66,0.8231137]
[1723411790910,22.81,143.7,143.66,0.8231137]
[1723411791779,29.7692,143.7,143.66,7.7839137]
[1723411791977,22.81,143.7,143.66,7.7839137]
[1723411792196,22.81,143.7,143.67,6.9603]
[1723411792488,22.196,143.71,143.67,6.9603]
[1723411795005,22.196,143.71,143.66,0.8231137]
[1723411795209,22.196,143.71,143.66,7.7838137]
[1723411795408,15.2375,143.71,143.66,0.8231137]
[1723411795616,15.2375,143.71,143.67,6.9602]
[1723411795794,22.196,143.71,143.67,6.9602]
[1723411795982,22.196,143.71,143.66,7.7838137]
[1723411796607,6.959,143.7,143.66,7.7838137]
[1723411796788,15.2375,143.71,143.66,7.7838137]
[1723411796789,22.1959,143.71,143.66,7.7838137]
[1723411797811,6.9593,143.7,143.66,0.8231137]
[1723411798012,11.41,143.69,143.66,0.8231137]
[1723411799116,11.41,143.69,143.66,7.7839137]
[1723411799314,11.41,143.7,143.67,6.9602]
[1723411799805,15.2375,143.71,143.67,6.9602]
[1723411800132,15.2375,143.71,143.7,6.9589]
[1723411800320,15.2375,143.71,143.69,24.3571]
[1723411800493,15.2375,143.71,143.68,6.9595]
[1723411801010,15.2375,143.71,143.66,18.2248137]
[1723411801011,15.2375,143.71,143.67,6.9603]
[1723411801413,15.2375,143.71,143.69,6.9593]
[1723411801617,15.2375,143.71,143.68,24.3589]
[1723411802621,15.2375,143.71,143.68,17.3991]
[1723411803921,11.41,143.69,143.66,0.8231137]
[1723411804113,11.41,143.69,143.66,7.7839137]
[1723411804312,15.2375,143.71,143.67,6.9601]
[1723411804507,16.5872,143.75,143.67,28.8098]
[1723411804707,23.5442,143.75,143.67,17.3998]
[1723411804912,11.41,143.74,143.68,11.41]
[1723411805114,11.41,143.74,143.67,28.8098]
[1723411805528,11.41,143.72,143.69,6.9593]
[1723411805721,11.41,143.73,143.69,6.9593]
[1723411806225,11.41,143.71,143.67,17.3998]
[1723411806538,11.41,143.72,143.67,17.3998]
[1723411806704,11.41,143.72,143.67,24.3601]
[1723411806905,11.41,143.71,143.67,24.3601]